Cogmind - Beta 13 @@@ ROGUE MODE // 2024.05.29 @ 02:38:15 Player: admiral_len Result: Destroyed by Y-45 Defender with Heavy Assault Rifle Performance ------------- Evolutions (1) 500 Regions Visited (3) 600 Robots Destroyed (66) 330 Value Destroyed (1906) 1906 Prototype IDs (1) 20 Alien Tech Used (0) 0 Bonus (373) 373 TOTAL SCORE: 3729 Bonus ------- Pacifist 200 High Alert Combat Kills 173 Cogmind --------- Core Integrity 0/400 Matter 197/300 Energy 265/265 System Corruption 0% Temperature Cool (9) Movement Core (350) Ox6 Location -9/Storage Parts ------- > --- POWER (1) -------- Improved Ion Engine > --- PROPULSION (4) --- (None) > --- UTILITY (2) ------ Improved Heat Sink Medium Storage Unit > --- WEAPON (2) ------- Light Assault Rifle > --- INVENTORY (10) --- Light Ion Engine Small Battery (100) Targeting Computer Light Armor Plating Light Armor Plating Light Armor Plating Shield Generator Shield Generator Peak State ------------ > --- POWER ------------ Light Nuclear Core > --- PROPULSION ------- Light Treads Light Treads Light Treads Light Treads > --- UTILITY ---------- Medium Storage Unit Light Armor Plating > --- WEAPON ----------- Heavy Assault Rifle Heavy Assault Rifle > --- INVENTORY -------- Heavy Ion Engine Improved Heat Sink Small Battery Heavy Assault Rifle Grenade Launcher [Rating: 14] Favorites ----------- Power Light Nuclear Core Engine Light Ion Engine Power Core Light Nuclear Core Propulsion Light Treads Treads Light Treads Leg Aluminum Leg Wheel Wheel Utility Medium Storage Unit Device Improved Heat Sink Storage Medium Storage Unit Protection Light Armor Plating Weapon Heavy Assault Rifle Energy Gun Beam Rifle Ballistic Gun Heavy Assault Rifle Launcher Grenade Launcher Build | -11 -10 -9 -9 ------- Run | Yrd Mat Mat Sto Slots Evolved 2 | . . 2 . Power . | . . . . Propulsion 2 | . . 2 . Utility . | . . . . Weapon . | . . . . Parts Attached 48 | 6 3 15 24 Power 5 | 1 1 . 3 Engine 4 | 1 . . 3 Core 1 | . 1 . . Reactor . | . . . . Propulsion 21 | 2 . 7 12 Treads 16 | 2 . 7 7 Leg 2 | . . . 2 Wheel 3 | . . . 3 Hover . | . . . . Flight . | . . . . Utility 8 | 1 2 2 3 Device 1 | . . . 1 Storage 3 | 1 2 . . Processor . | . . . . Hackware . | . . . . Protection 4 | . . 2 2 Artifact . | . . . . Weapon 14 | 2 . 6 6 Energy Gun 1 | . . . 1 Energy Cannon . | . . . . Ballistic Gun 11 | 2 . 6 3 Ballistic Cannon . | . . . . Launcher 2 | . . . 2 Special Weapon . | . . . . Impact Weapon . | . . . . Slashing Weapon . | . . . . Piercing Weapon . | . . . . Special Melee Weapon . | . . . . Unidentified Prototypes . | . . . . Parts Lost 20 | . . 2 18 Power 3 | . . . 3 Propulsion 8 | . . . 8 Utility 4 | . . 1 3 Weapon 5 | . . 1 4 Highest Loss Streak 6 | . . 1 6 To Critical Strikes . | . . . . Average Slot Usage (%) 91 | . 91 97 83 Engine 3 | . 7 . 5 Core 7 | . 6 11 4 Treads 35 | . 28 43 28 Leg 1 | . . . 3 Storage 13 | . 20 13 11 Protection 6 | . . 6 7 Ballistic Gun 21 | . 28 22 18 Naked Turns . | . . . . Heaviest Build 24 | 14 23 24 24 Greatest Support 80 | 40 40 80 80 Greatest Overweight (x) 6 | . . . 6 Average Overweight (x) . | . . . . Largest Inventory Capacity 10 | 8 10 10 10 Average Capacity 9 | 7 8 10 10 Most Carried 10 | 3 6 10 10 Average Carried 6 | 1 3 5 8 Final Capacity 10 | 8 10 10 10 Final Carried 9 | 2 4 9 8 Class Distribution -------------------- 63% | Scavenger-Mutant 36% | Mutant Dominant Class ---------------- Mutant | -10/Materials Scavenger-Mutant | -9/Materials Scavenger-Mutant | -9/Storage Resources | -11 -10 -9 -9 ----------- Run | Yrd Mat Mat Sto Matter Collected 1443 | 222 58 528 635 Remotely . | . . . . Salvage Created 2332 | . . 1035 1297 Parts 153 | . . 81 72 Haulers Intercepted 1 | . . . 1 Recyclers Shooed . | . . . . Parts Field Recycled . | . . . . Retrieved Matter . | . . . . Parts Self-Destructed . | . . . . Prevented . | . . . . Kills | -11 -10 -9 -9 ------- Run | Yrd Mat Mat Sto Combat Hostiles Destroyed 55 | . . 28 27 Melee 1 | . . . 1 Guns 50 | . . 28 22 AOE 4 | . . . 4 Classes Destroyed 10 | . . 5 5 Worker 1 | . . 1 . Builder 2 | . . . 2 Hauler 1 | . . . 1 Recycler 2 | . . . 2 Mechanic 2 | . . . 2 Operator 1 | . . . 1 Watcher 2 | . . 2 . Swarmer 12 | . . 10 2 Grunt 27 | . . 11 16 Sentry 16 | . . 7 9 Best Kill Streak 6 | . . 6 5 Combat Bots Only 5 | . . 5 5 Max Kills in Single Turn 1 | . . 1 1 Gunslinging . | . . . . Exploded 1 | . . . 1 Melee 1 | . . . 1 Uniques/NPCs Destroyed . | . . . . Combat | -11 -10 -9 -9 -------- Run | Yrd Mat Mat Sto Hostile Shots Fired 344 | . . 131 213 Missed 83 | . . 35 48 Damage Taken 3277 | . . 1152 2125 Core 402 | . . 167 235 Absorbed by Shields . | . . . . Core Remaining (%) 100 | 100 100 . . Volleys Fired 211 | . . 83 128 Largest 2 | . . 2 2 Hottest 79 | . . 46 79 Shots Fired 390 | . . 165 225 Gun 379 | . . 165 214 Cannon . | . . . . Launcher 11 | . . . 11 Special . | . . . . Kinetic 342 | . . 165 177 Thermal 37 | . . . 37 Explosive 11 | . . . 11 Electromagnetic . | . . . . Robot Hit Streak 20 | . . 14 20 Robot Miss Streak 3 | . . 3 3 Penetration Max . | . . . . Secondary Targets 3 | . . . 3 Max Gunslinging Chain 1 | . . . 1 Shots Hit Robots 284 | . . 118 166 Core Hits 122 | . . 52 70 Critical Kills . | . . . . Critical Parts Destroyed 2 | . . 1 1 Critical Strikes 7 | . . 1 6 Burn 4 | . . . 4 Destroy 3 | . . 1 2 Melee Attacks . | . . . . Impact . | . . . . Slashing . | . . . . Piercing . | . . . . Sneak Attacks . | . . . . Combat Hostiles . | . . . . Follow-up Attacks . | . . . . Damage Inflicted 3868 | . . 1544 2324 Guns 3329 | . . 1519 1810 Cannons . | . . . . Explosions 506 | . . . 506 Melee . | . . . . Ramming 33 | . . 25 8 Kinetic 2966 | . . 1519 1447 Thermal 363 | . . . 363 Explosive 506 | . . . 506 Electromagnetic . | . . . . Impact . | . . . . Slashing . | . . . . Piercing . | . . . . Highest Corruption . | . . . . Average Corruption . | . . . . Corruption Purged . | . . . . Corruption Blocked . | . . . . Overload Shots . | . . . . Overflow Damage . | . . . . Projectiles . | . . . . Explosions . | . . . . Melee . | . . . . Knockbacks . | . . . . Impact . | . . . . Kinetic . | . . . . Secondary . | . . . . Self-Inflicted Damage 15 | . . . 15 Shots 1 | . . . 1 Rammed 8 | . . 7 1 Targets Rammed 12 | . . 8 4 Kicked . | . . . . Crushed 4 | . . 1 3 Highest Temperature 499 | . . 26 499 Average Temperature 111 | . . 10 154 Received Heat Transfer 1356 | . . 474 882 Effects 8 | . . . 8 Energy Bleed 2 | . . . 2 Matter Decay 3 | . . . 3 Short Circuit 1 | . . . 1 Damage (minor) 2 | . . . 2 Siege Activations . | . . . . Robots Corrupted . | . . . . Combat Hostiles . | . . . . Parts Fried . | . . . . Impact Corruptions . | . . . . Robots Melted . | . . . . Combat Hostiles . | . . . . Parts Melted 4 | . . . 4 Heat Transferred 1221 | . . . 1221 Parts Sabotaged . | . . . . Parts Stolen . | . . . . Parts Stripped . | . . . . Power Chain Reactions . | . . . . Alert | -11 -10 -9 -9 ------- Run | Yrd Mat Mat Sto Peak Influence 637 | . 7 584 637 Initial 198 | . . 2 198 Average 294 | . 4 343 359 Maximum Alert Level 2 | . . 2 2 Low Security (%) 22 | 100 100 11 2 Level 1 52 | . . 60 63 Level 2 25 | . . 27 33 Level 3 . | . . . . Level 4 . | . . . . Level 5 . | . . . . High Security . | . . . . Max Security . | . . . . Squads Dispatched 12 | . 1 3 8 Investigation 3 | . 1 1 1 Extermination . | . . . . Reinforcement 6 | . . 2 4 Assault . | . . . . Garrison 3 | . . . 3 Intercept . | . . . . Searches Triggered . | . . . . Construction Impeded 1 | . . . 1 Haulers Reinforced . | . . . . Active Scanning Responses . | . . . . Cargo Convoy Interrupts . | . . . . Stealth | -11 -10 -9 -9 --------- Run | Yrd Mat Mat Sto Distress Signals 12 | . . 7 5 Communications Jammed . | . . . . Distress Signals . | . . . . Times Spotted 84 | . . 45 39 Peak Tracking Total 7 | . . 7 6 Tactical Retreats 6 | . . 3 3 Traps | -11 -10 -9 -9 ------- Run | Yrd Mat Mat Sto Traps Triggered . | . . . . Indirectly . | . . . . Trap Hack Attempts . | . . . . Triggered . | . . . . Disarmed . | . . . . Reprogrammed . | . . . . Reused . | . . . . Traps Extracted . | . . . . Installed . | . . . . Triggered . | . . . . Machines | -11 -10 -9 -9 ---------- Run | Yrd Mat Mat Sto Machines Disabled 1 | . . 1 . Max in Single Turn 1 | . . 1 . Machines Repaired . | . . . . Machines Dismantled . | . . . . Machines Sabotaged . | . . . . Overloaded Fab Kills . | . . . . Hacking | -11 -10 -9 -9 --------- Run | Yrd Mat Mat Sto Machines Accessed 5 | . 1 2 2 Terminals 4 | . 1 1 2 Fabricators . | . . . . Repair Stations . | . . . . Recycling Units . | . . . . Scanalyzers 1 | . . 1 . Garrison Access . | . . . . Total Hacks 12 | . 2 6 4 Successful 7 | . 2 4 1 Failed 5 | . . 2 3 Catastrophic 2 | . . 1 1 Database Lockouts . | . . . . Manual . | . . . . Terminals 10 | . 2 4 4 Fabricators . | . . . . Repair Stations . | . . . . Recycling Units . | . . . . Scanalyzers 2 | . . 2 . Garrison Access . | . . . . Terminal Hacks 5 | . 2 2 1 Record 4 | . 2 2 . Zone Layout 1 | . . . 1 Fabricator Hacks . | . . . . Repair Station Hacks . | . . . . Recycling Unit Hacks . | . . . . Scanalyzer 2 | . . 2 . Insert Component 1 | . . 1 . Analyze 1 | . . 1 . Garrison Access Hacks . | . . . . Unauthorized Hacks . | . . . . Terminals . | . . . . Fabricators . | . . . . Repair Stations . | . . . . Recycling Units . | . . . . Scanalyzers . | . . . . Garrison Access . | . . . . Data Cores Recovered . | . . . . Used . | . . . . Hacking Detections 3 | . . 1 2 Full Trace Events 2 | . . 1 1 Feedback Events . | . . . . Feedback Blocked . | . . . . Robot Schematics Acquired . | . . . . Robots Built . | . . . . Authchips . | . . . . Time . | . . . . Total Robot Build Rating . | . . . . Part Schematics Acquired 1 | . . 1 . Parts Built . | . . . . Authchips . | . . . . Time . | . . . . Total Part Build Rating . | . . . . Parts Repaired . | . . . . Time . | . . . . Parts Recycled . | . . . . Recycled Matter . | . . . . Retrieved Matter . | . . . . Retrieved Components . | . . . . Parts Scanalyzed 1 | . . 1 . Part Schematics Acquired 1 | . . 1 . Parts Damaged . | . . . . Bothacking | -11 -10 -9 -9 ------------ Run | Yrd Mat Mat Sto Used RIF Installer . | . . . . Robots Hacked . | . . . . Non-combat . | . . . . Combat . | . . . . Robot Hacks Applied . | . . . . Relay Couplers Released . | . . . . Fabnet Peak Effective % . | . . . . Robots Rewired . | . . . . Allies Hacked . | . . . . Hacks Repelled . | . . . . Allies | -11 -10 -9 -9 -------- Run | Yrd Mat Mat Sto Total Allies . | . . . . Largest Group . | . . . . Highest-Rated Group . | . . . . Highest-Rated Ally . | . . . . Total Orders . | . . . . Ally Attacks . | . . . . Total Damage . | . . . . Kills . | . . . . Allies Corrupted . | . . . . Allies Melted . | . . . . Intel | -11 -10 -9 -9 ------- Run | Yrd Mat Mat Sto Robot Analysis Total . | . . . . Derelict Logs Recovered . | . . . . Drone Launches . | . . . . Drone Recoveries . | . . . . Exploration | -11 -10 -9 -9 ------------- Run | Yrd Mat Mat Sto Turns Passed 2791 | 65 393 1260 1073 Spaces Moved 1273 | 36 239 562 436 Core 16 | 5 . . 11 Treads 1137 | 31 239 562 305 Legs 84 | . . . 84 Wheels 36 | . . . 36 Hover . | . . . . Flight . | . . . . Fastest Speed 50 | 50 160 160 80 Average Speed 156 | 144 160 160 150 Slowest Speed 350 | 160 160 160 350 Overloaded Moves . | . . . . Propulsion Burnouts . | . . . . Robots Hopped . | . . . . Cave-ins Triggered . | . . . . Exploration Rate (%) 34 | 3 35 53 48 Regions Visited 3 Branch Regions 1 Pre-discovered Areas . | . . . . Known Exits Taken . | . . . . Unknown Exits Taken 3 | 1 1 1 . Scrap Searched . | . . . . Spaces Dug . | . . . . Terrain Destroyed 49 | . . . 49 Melee . | . . . . Projectile . | . . . . AOE 49 | . . . 49 Terrain Rammed . | . . . . Walls Destroyed . | . . . . Machines Disabled . | . . . . Actions | -11 -10 -9 -9 --------- Run | Yrd Mat Mat Sto Total 1713 | 49 252 764 648 Wait 88 | . . 60 28 Move 1270 | 35 238 561 436 Hop . | . . . . Pick Up 57 | 8 7 23 19 Fast Attach 1 | . . . 1 Attach 32 | 6 3 6 17 Detach . | . . . . Swap 15 | . . 9 6 Drop 27 | . 4 14 9 Fire 211 | . . 83 128 Melee . | . . . . Ram . | . . . . Kick . | . . . . Crush 12 | . . 8 4 Escape Stasis . | . . . . Rewire . | . . . . Trap . | . . . . Miscellaneous . | . . . . Route ------- -11/Scrapyard -10/Materials -9/Materials (discovered 2 exits: [*Min] / *Sto) -9/Storage History --------- Turn | Location | Event 17 | -11/Scrapyard | Discovered new exit (range 16) 66 | -11/Scrapyard | Entered Materials 314 | -10/Materials | Build established: Mutant 402 | -10/Materials | Discovered new exit (range 9) 459 | -10/Materials | Entered another Materials area 459 | -9/Materials | Evolved 2 slots: Propulsion x2 1174 | -9/Materials | Discovered new exit (range 9) 1232 | -9/Materials | Build established: Scavenger-Mutant 1701 | -9/Materials | Discovered new exit (range 10) 1719 | -9/Materials | Entered Storage 2011 | -9/Storage | Garrison activated, responded to threat 2167 | -9/Storage | Core integrity fell below 50% 2266 | -9/Storage | Lost 6 parts (1p3n1u1w) 2599 | -9/Storage | Core integrity fell below 20% 2671 | -9/Storage | Lost 3 parts (1p2n) 2792 | -9/Storage | Destroyed by Y-45 Defender with Heavy Assault Rifle Last Messages --------------- U-05 Engineer lays Concrete. Acquired Wheel. O-16 Technician sends out distress signal. O-16 Technician: "IFF HANDSHAKE FAILED. SECURING TERMINAL." ALERT: Hostiles spotted, dispatching reinforcements to Terminal S005. U-05 Engineer lays Concrete. U-05 Engineer builds a Wall. Lgt. Assault Rifle destroyed. U-05 Engineer lays Concrete. U-05 Engineer builds a Wall. G-34 Mercenary destroyed. Wheel destroyed. A-02 Transporter destroyed. U-05 Engineer builds a Door. Critical hit (Burn: +37). Wheel destroyed. Grenade Launcher destroyed. U-05 Engineer lays Concrete. G-34 Mercenary destroyed. U-05 Engineer lays Concrete. Map ----- +----------------------------------------------------+ | ??????????????????????????????????????? | | ??????????????????????????????????????? | | ??????????????????????????????????????? | | ??????????????????????????????????????# | | ??????????????????????????????????????# | | ???????????????????????########???????# | | ???????????????????????# #???????# | | ???????????????????????# """ #???????# | | ???????????????????????#= """ #???????# | | ???????????????????????# """ #???????# | | ???????????????????????# #???????# | | ???????????????????????? ?????????? | | ????????????????????????##+##?????????? | | ??????????????????####### !########### | | ??????????????????#!%[*%[! !%+ | | ?????????########?# #####= [## | | ?????????# #?# #???## ### | | ?????????#""" ### #????# #?# | | ?????????#""" ## ####?# #?#########+ | | ?????????#""" # # # #?# ??????????? | | ????# ???# # # # ######??????????? | | ????# ?## [ # # ########????????? | | ????# a# ###+##### # #????? | | ????# ==%=* ! + ## | | ????# [===* !#### + | | ????# !=! @ # # #### #???? | | ????# %=* u u## # #??????????? | | ????# #/##Y# # #??????????? | | ????# ###########??????????? | | ????# # #????????????????????? | | ????# ??# #????????????????????? | | ????# ???# #????????????????????? | | ????# ????# [* #????????????????????? | | ??????????# [* #????????????????????? | | ??????????#### ###????????????????????? | | ??????????????##??????????????????????? | | ??????????????????????????????????????? | | ??????????????????????????????????????? | | ??????????????????????????????????????? | | ??????????????????????????????????????? | | ??????????????????????????????????????? | | ??????????????????????????????????????? | | ??????????????????????????????????????? | | ??????????????????????????????????????? | | ??????????????????????????????????????? | | ??????????????????????????????????????? | | | | | | | | | +----------------------------------------------------+ Best States ------------- Heat Dissipation 42 Energy Generation 14 Energy Capacity 410 Matter Stores 300 Matter Capacity 300 Sight Range 16 Terrain Scan Density 10 Armor Coverage 150 Evasion (%) 55 Recoil Reduction 4 Item Schematics ----------------- Hvy. Ion Engine | -9/Materials | Scanalyzed Robot Schematics ------------------ None Fabricated ------------ Nothing Alien Tech Used ----------------- None Achievements -------------- Fist Fight Safety First Challenges ------------ None Game ------ Seed OpticalVariableProtection Manual? 0 Play Time 00:36:45 Cumulative 2.3 hours Start 2024.05.29 @ 02:03:04 End 2024.05.29 @ 02:38:15 Sessions 1 Manual Loads 0 Difficulty Rogue Special Mode None Game No. 10 Rogue 10 Adventurer 0 Explorer 0 Win Type - Total 0 Types 0/0/0/0/0/0/0/0/0 Lore% 0 Gallery% 5 Achievement% 4 Wizard Run 0 Options --------- Layout 0 ASCII 0 Keyboard 0 Movement Mouse Keybinds 0 Fullscreen 1 Font 18/SmallcapsGlow Map View 38x25 Zoom Use 95% Tactical HUD 0 Map Filters NONE Filters NONE Steam 1 RUN: e459ebd7-c55d-4c68-9ac7-f93c624f686b